fUSD/lending_fUSD_20260519
["ID","MTS","AMOUNT","RATE_DAILY","PERIOD"]
[422610470,1779150654000,-394.83,0.00039399,120]
[422610448,1779150654000,-399730.49,0.000393,9]
[422610499,1779150654000,-500.0,0.00039537,30]
[422610443,1779150654000,-354.02360358,0.00039259,2]
[422610449,1779150654000,-700.0,0.000393,30]
[422610447,1779150654000,-394.83,0.00039299,120]
[422610444,1779150654000,-409.62075193,0.00039263,2]
[422610445,1779150654000,-406.0,0.00039267,90]
[422610461,1779150654000,-331.13568807,0.00039395,11]
[422610451,1779150654000,-150.0,0.00039334,120]
[422610462,1779150654000,-331.13568807,0.00039395,11]
[422610454,1779150654000,-190.47,0.00039342,120]
[422610450,1779150654000,-157.0,0.000393,120]
[422610453,1779150654000,-303.89,0.00039342,120]
[422610472,1779150654000,-2000.0,0.000394,7]
[422610452,1779150654000,-633.79,0.00039342,30]
[422610458,1779150654000,-409.62075193,0.00039363,2]
[422610460,1779150654000,-331.13568807,0.00039395,11]
[422610456,1779150654000,-150.0,0.00039342,120]
[422610459,1779150654000,-274.00351447,0.00039374,2]
[422610457,1779150654000,-795.45379156,0.00039361,2]
[422610463,1779150654000,-331.13568807,0.00039395,11]
[422610465,1779150654000,-331.13568807,0.00039395,11]
[422610464,1779150654000,-331.13568807,0.00039395,11]
[422610474,1779150654000,-409.62075193,0.00039463,2]
[422610467,1779150654000,-331.13568807,0.00039395,11]
[422610469,1779150654000,-331.13568807,0.00039395,11]
[422610466,1779150654000,-331.13568807,0.00039395,11]
[422610468,1779150654000,-331.13568807,0.00039395,11]
[422610455,1779150654000,-150.0,0.00039342,120]
[422610503,1779150654000,-409.62075193,0.00039563,2]
[422610555,1779150654000,-150.0,0.00039805,30]
[422610502,1779150654000,-230.385807,0.00039543,47]
[422610538,1779150654000,-1000.0,0.00039726,120]
[422610539,1779150654000,-1562.99,0.00039726,60]
[422610543,1779150654000,-214.98867271,0.00039744,120]
[422610540,1779150654000,-926.74,0.00039726,60]
[422610548,1779150654000,-409.62075193,0.00039763,2]
[422610547,1779150654000,-1014.57559973,0.0003976,2]
[422610549,1779150654000,-394.83,0.00039799,120]
[422610545,1779150654000,-248.0,0.00039749,120]
[422610541,1779150654000,-300.0,0.00039726,120]
[422610544,1779150654000,-248.0,0.00039749,120]
[422610542,1779150654000,-150.0,0.00039728,2]
[422610550,1779150654000,-10000.0,0.000398,30]
[422610551,1779150654000,-3303.6864816,0.000398,30]
[422610557,1779150654000,-150.0,0.00039805,30]
[422610554,1779150654000,-717.67166567,0.00039805,30]
[422610556,1779150654000,-4236.10859837,0.00039805,30]
[422610560,1779150654000,-305.15456273,0.00039845,7]
[422610553,1779150654000,-150.0,0.00039805,30]
[422610563,1779150654000,-194.682262,0.0003985,30]
[422610559,1779150654000,-150.8036404,0.00039826,120]
[422610561,1779150654000,-151.0,0.0003985,30]
[422610562,1779150654000,-151.0,0.0003985,30]
[422610552,1779150654000,-250.0,0.000398,30]
[422610565,1779150654000,-942458.85966949,0.0003985,8]
[422610558,1779150654000,-499.91908987,0.00039805,30]
[422610564,1779150654000,-151.0,0.0003985,20]
[422610504,1779150654000,-150.0,0.00039579,2]
[422610537,1779150654000,-157.8082295,0.00039715,2]
[422610535,1779150654000,-172.0,0.000397,2]
[422610546,1779150654000,-239.75323326,0.0003976,2]
[422610534,1779150654000,-2138.0,0.000397,120]
[422610501,1779150654000,-444.51,0.00039537,30]
[422610511,1779150654000,-500.0,0.00039598,30]
[422610506,1779150654000,-500.0,0.00039598,30]
[422610507,1779150654000,-500.0,0.00039598,30]
[422610508,1779150654000,-500.0,0.00039598,30]
[422610505,1779150654000,-984.58388919,0.0003959,30]
[422610512,1779150654000,-500.0,0.00039598,30]
[422610514,1779150654000,-500.0,0.00039598,30]
[422610516,1779150654000,-500.0,0.00039598,30]
[422610526,1779150654000,-13037.65,0.0003962,7]
[422610521,1779150654000,-394.83,0.00039599,120]
[422610523,1779150654000,-20354.92717915,0.000396,30]
[422610513,1779150654000,-500.0,0.00039598,30]
[422610518,1779150654000,-500.0,0.00039598,30]
[422610520,1779150654000,-220.45,0.00039598,30]
[422610525,1779150654000,-200.0,0.00039613,2]
[422610528,1779150654000,-500.0,0.00039654,60]
[422610515,1779150654000,-500.0,0.00039598,30]
[422610533,1779150654000,-394.83,0.00039699,120]
[422610532,1779150654000,-160.55658274,0.0003969,120]
[422610531,1779150654000,-523.34,0.0003968,120]
[422610529,1779150654000,-1300.0,0.00039654,60]
[422610536,1779150654000,-1616.02,0.000397,120]
[422610530,1779150654000,-409.62075193,0.00039663,2]
[422610522,1779150654000,-233.708781,0.000396,47]
[422610519,1779150654000,-220.45,0.00039598,30]
[422610524,1779150654000,-200.0,0.00039613,2]
[422610517,1779150654000,-500.0,0.00039598,30]
[422610527,1779150654000,-10669.64,0.0003962,7]
[422610576,1779150655000,-174.81,0.00025811,7]
[422610578,1779150655000,-155.45,0.00029232,30]
[422610579,1779150655000,-419.719517,0.0003638,2]
[422610574,1779150655000,-56.10133447,0.00025234,2]
[422610570,1779150655000,-38720.50081201,0.0003985,8]
[422610568,1779150655000,-5090.88593671,0.0003985,8]
[422610567,1779150655000,-1043.35,0.0003985,8]
[422610566,1779150655000,-344.73477009,0.0003985,8]
[422610572,1779150655000,-174.81,0.00024946,7]
[422610569,1779150655000,-284.14433268,0.0003985,8]
[422610575,1779150655000,-174.81,0.00025523,2]
[422610587,1779150655000,-2343.0,0.0003985,8]
[422610577,1779150655000,-461.0,0.00026192,10]
[422610589,1779150655000,-164.93310085,0.0003638,2]
[422610571,1779150655000,-174.81,0.00024658,2]
[422610585,1779150655000,-414.751446,0.0003985,8]
[422610584,1779150655000,-2266175.77252261,0.0003985,8]
[422610586,1779150655000,-773.88,0.0003985,8]
[422610583,1779150655000,-3121.28983754,0.0003975,2]
[422610580,1779150655000,-108.33667204,0.0003638,2]
[422610581,1779150655000,-151.0,0.00037555,7]
[422610573,1779150655000,-118.70866553,0.00025234,2]
[422610582,1779150655000,-151.0,0.00039075,30]
[422610588,1779150655000,-275.0,0.00026192,10]
[422610592,1779150656000,204.0,0.00030137,120]
[422610590,1779150656000,-403.763,0.00023801,2]
[422610591,1779150656000,-101.237,0.0002863,2]
[422610593,1779150797000,2000.0,0.00030099,120]
[422610594,1779150810000,1732.706646,0.00028244,120]
[422610595,1779150818000,288.450636,0.00028212,120]
[422610596,1779150838000,336.17186285,0.00013499,21]
[422610597,1779150849000,372.239471,0.00028057,120]
[422610598,1779150852000,345.266672,0.00028057,120]
[422610599,1779150883000,186.119735,0.00026849,120]
[422610600,1779150884000,172.633336,0.00026849,120]
[422610603,1779151025000,402.23547,0.00023691,120]
[422610604,1779151058000,201.117735,0.00023266,120]
[422610612,1779151560000,169.8,6.321e-05,2]
[422610633,1779151832000,-500.0,0.00012923,2]
[422610643,1779151832000,-171.59043307,0.00013402,2]
[422610644,1779151832000,-242.46497118,0.00013402,2]
[422610635,1779151832000,-157.17,0.00013046,2]
[422610634,1779151832000,-241.96,0.00012977,2]
[422610637,1779151832000,-166.66,0.00013286,2]
[422610632,1779151832000,-200.0,0.00012864,2]
[422610641,1779151832000,-7994.86625849,0.00013402,2]
[422610638,1779151832000,-150.0,0.00013378,2]
[422610639,1779151832000,-2943.01,0.00013379,2]
[422610631,1779151832000,-166.66,0.00012862,2]
[422610640,1779151832000,-400.72579941,0.00013402,2]
[422610628,1779151832000,-638.74,0.00012545,2]
[422610616,1779151832000,-162.8,0.00010613,2]
[422610627,1779151832000,-1330.42,0.000124,2]
[422610621,1779151832000,-1200.0,0.00012271,2]
[422610624,1779151832000,-208.5339928,0.00012312,2]
[422610626,1779151832000,-41816.89,0.00012365,2]
[422610625,1779151832000,-163.23,0.00012313,2]
[422610623,1779151832000,-233.83520328,0.00012295,2]
[422610629,1779151832000,-417.83987201,0.00012742,2]
[422610622,1779151832000,-9697.8,0.00012272,2]
[422610620,1779151832000,-162.8,0.00011674,2]
[422610619,1779151832000,-87.2,0.00011674,2]
[422610618,1779151832000,-250.0,0.00011651,2]
[422610642,1779151832000,-411.66029136,0.00013402,2]
[422610630,1779151832000,-2525.17012799,0.00012742,2]
[422610636,1779151832000,-2943.01,0.00013061,2]
[422610617,1779151832000,-250.0,0.00011033,2]
[422610648,1779151832000,-195.42,0.00013432,2]
[422610645,1779151832000,-3121.28983756,0.00013402,2]
[422610684,1779151832000,-526.80488787,0.00013502,2]
[422610683,1779151832000,-400.52034769,0.00013502,2]
[422610681,1779151832000,-1246.48,0.00013502,2]
[422610667,1779151832000,-295.08680176,0.00013501,2]
[422610665,1779151832000,-1310.26867814,0.00013501,3]
[422610675,1779151832000,-1254.41808677,0.00013502,2]
[422610660,1779151832000,-150.0,0.00013501,2]
[422610663,1779151832000,-150.0,0.00013501,2]
[422610677,1779151832000,-1500.36,0.00013502,2]
[422610661,1779151832000,-150.0,0.00013501,2]
[422610673,1779151832000,-338116.89671192,0.00013502,2]
[422610658,1779151832000,-646.17992413,0.00013501,2]
[422610679,1779151832000,-4578.38383607,0.00013502,2]
[422610669,1779151832000,-54064.8872774,0.00013502,2]
[422610647,1779151832000,-670.76733203,0.00013402,2]
[422610671,1779151832000,-116590.62439612,0.00013502,2]
[422610649,1779151832000,-151.0,0.00013499,2]
[422610653,1779151832000,-328.21014546,0.00013501,2]
[422610657,1779151832000,-500.0,0.00013501,2]
[422610651,1779151832000,-234.98934232,0.00013501,2]
[422610650,1779151832000,-1680.0,0.00013499,2]
[422610656,1779151832000,-500.0,0.00013501,2]
[422610654,1779151832000,-500.0,0.00013501,2]
[422610646,1779151832000,-7816.32136598,0.00013402,2]
[422610652,1779151832000,-500.0,0.00013501,2]
[422610659,1779151832000,-561.8177353,0.00013501,2]
[422610655,1779151832000,-344.51242254,0.00013501,2]
[422610726,1779151838000,-500.0,0.00013698,2]
[422610735,1779151838000,-500.0,0.00013698,2]
[422610729,1779151838000,-500.0,0.00013698,2]
[422610728,1779151838000,-500.0,0.00013698,2]
[422610727,1779151838000,-500.0,0.00013698,2]
[422610731,1779151838000,-500.0,0.00013698,2]
[422610733,1779151838000,-500.0,0.00013698,2]
[422610732,1779151838000,-500.0,0.00013698,2]
[422610737,1779151838000,-500.0,0.00013698,2]
[422610744,1779151838000,-500.0,0.00013698,2]
[422610736,1779151838000,-500.0,0.00013698,2]
[422610740,1779151838000,-500.0,0.00013698,2]
[422610739,1779151838000,-500.0,0.00013698,2]
[422610738,1779151838000,-500.0,0.00013698,2]
[422610745,1779151838000,-500.0,0.00013698,2]
[422610741,1779151838000,-500.0,0.00013698,2]
[422610746,1779151838000,-500.0,0.00013698,2]
[422610743,1779151838000,-500.0,0.00013698,2]
[422610725,1779151838000,-500.0,0.00013698,2]
[422610747,1779151838000,-500.0,0.00013698,2]
[422610723,1779151838000,-500.0,0.00013698,2]
[422610711,1779151838000,-500.0,0.00013698,2]
[422610734,1779151838000,-500.0,0.00013698,2]
[422610704,1779151838000,-167.0,0.00013502,2]
[422610703,1779151838000,-1981720.62445616,0.00013502,2]
[422610705,1779151838000,-167.0,0.00013502,2]
[422610707,1779151838000,-167.0,0.00013502,2]
[422610706,1779151838000,-167.0,0.00013502,2]
[422610708,1779151838000,-5780.85,0.00013608,2]
[422610709,1779151838000,-646.76644872,0.00013608,2]
[422610710,1779151838000,-2943.01,0.00013698,2]
[422610742,1779151838000,-500.0,0.00013698,2]
[422610724,1779151838000,-500.0,0.00013698,2]
[422610712,1779151838000,-508.82,0.00013698,2]
[422610714,1779151838000,-500.0,0.00013698,2]
[422610713,1779151838000,-500.0,0.00013698,2]
[422610719,1779151838000,-500.0,0.00013698,2]
[422610721,1779151838000,-500.0,0.00013698,2]
[422610716,1779151838000,-500.0,0.00013698,2]
[422610722,1779151838000,-500.0,0.00013698,2]
[422610715,1779151838000,-500.0,0.00013698,2]
[422610717,1779151838000,-430.00188072,0.00013698,2]
[422610720,1779151838000,-500.0,0.00013698,2]
[422610718,1779151838000,-500.0,0.00013698,2]
[422610749,1779151838000,-500.0,0.00013698,2]
[422610730,1779151838000,-500.0,0.00013698,2]
[422610750,1779151838000,-500.0,0.00013698,2]
[422610781,1779151838000,-842.37,0.00013698,2]
[422610783,1779151838000,-842.37,0.00013698,2]
[422610786,1779151838000,-842.37,0.00013698,2]
[422610787,1779151838000,-842.37,0.00013698,2]
[422610785,1779151838000,-842.37,0.00013698,2]
[422610788,1779151838000,-842.37,0.00013698,2]
[422610789,1779151838000,-842.37,0.00013698,2]
[422610790,1779151838000,-842.37,0.00013698,2]
[422610794,1779151838000,-842.37,0.00013698,2]
[422610782,1779151838000,-842.37,0.00013698,2]
[422610795,1779151838000,-842.37,0.00013698,2]
[422610792,1779151838000,-842.37,0.00013698,2]
[422610798,1779151838000,-500.0,0.00013698,2]
[422610796,1779151838000,-500.0,0.00013698,2]
[422610791,1779151838000,-842.37,0.00013698,2]
[422610793,1779151838000,-842.37,0.00013698,2]
[422610799,1779151838000,-506.53569257,0.00013698,2]
[422610802,1779151838000,-167.0,0.00013698,2]
[422610801,1779151838000,-500.0,0.00013698,2]
[422610748,1779151838000,-500.0,0.00013698,2]
[422610797,1779151838000,-500.0,0.00013698,2]
[422610784,1779151838000,-842.37,0.00013698,2]
[422610800,1779151838000,-500.0,0.00013698,2]
[422610779,1779151838000,-508.30772512,0.00013698,2]
[422610752,1779151838000,-500.0,0.00013698,2]
[422610780,1779151838000,-842.37,0.00013698,2]
[422610751,1779151838000,-500.0,0.00013698,2]
[422610753,1779151838000,-500.0,0.00013698,2]
[422610754,1779151838000,-500.0,0.00013698,2]
[422610756,1779151838000,-500.0,0.00013698,2]
[422610769,1779151838000,-500.0,0.00013698,2]
[422610758,1779151838000,-500.0,0.00013698,2]
[422610771,1779151838000,-500.0,0.00013698,2]
[422610757,1779151838000,-500.0,0.00013698,2]
[422610755,1779151838000,-500.0,0.00013698,2]
[422610763,1779151838000,-500.0,0.00013698,2]
[422610759,1779151838000,-500.0,0.00013698,2]
[422610762,1779151838000,-500.0,0.00013698,2]
[422610765,1779151838000,-500.0,0.00013698,2]
[422610760,1779151838000,-500.0,0.00013698,2]
[422610767,1779151838000,-500.0,0.00013698,2]
[422610773,1779151838000,-500.0,0.00013698,2]
[422610775,1779151838000,-500.0,0.00013698,2]
[422610761,1779151838000,-500.0,0.00013698,2]
[422610776,1779151838000,-500.0,0.00013698,2]
[422610778,1779151838000,-500.0,0.00013698,2]
[422610840,1779151839000,-1132.71,0.000144,2]
[422610843,1779151839000,-500.0,0.00014463,7]
[422610845,1779151839000,-255.0,0.00014489,2]
[422610842,1779151839000,-500.0,0.00014463,7]
[422610849,1779151839000,-500.0,0.00014504,2]
[422610837,1779151839000,-166.66,0.00014247,2]
[422610847,1779151839000,-2000.0,0.00014491,2]
[422610846,1779151839000,-7029.8377,0.00014491,2]
[422610838,1779151839000,-150.0,0.0001429,2]
[422610844,1779151839000,-432.0,0.00014463,7]
[422610829,1779151839000,-160.0,0.00013738,2]
[422610839,1779151839000,-166.66,0.00014384,2]
[422610841,1779151839000,-500.0,0.00014463,7]
[422610862,1779151839000,-299.99,0.00014504,2]
[422610858,1779151839000,-999.99,0.00014504,2]
[422610855,1779151839000,-1487.95,0.00014504,2]
[422610850,1779151839000,-4999.99,0.00014504,2]
[422610860,1779151839000,-9999.99,0.00014504,2]
[422610861,1779151839000,-4112.54,0.00014504,2]
[422610854,1779151839000,-1628.27,0.00014504,2]
[422610853,1779151839000,-499.99,0.00014504,2]
[422610852,1779151839000,-838.34,0.00014504,2]
[422610856,1779151839000,-9999.99,0.00014504,2]
[422610851,1779151839000,-520.48,0.00014504,2]
[422610857,1779151839000,-9999.99,0.00014504,2]
[422610859,1779151839000,-150.99,0.00014504,2]
[422610827,1779151839000,-166.66,0.00013711,2]
[422610848,1779151839000,-500.0,0.00014504,2]
[422610825,1779151839000,-3013.08,0.00013699,2]
[422610811,1779151839000,-500.0,0.00013698,2]
[422610836,1779151839000,-166.66,0.00014135,2]
[422610863,1779151839000,-166.66,0.0001456,2]
[422610812,1779151839000,-500.0,0.00013698,2]
[422610803,1779151839000,-172.97403995,0.00013698,2]
[422610804,1779151839000,-602.92,0.00013698,2]
[422610805,1779151839000,-500.0,0.00013698,2]
[422610806,1779151839000,-500.0,0.00013698,2]
[422610807,1779151839000,-500.0,0.00013698,2]
[422610810,1779151839000,-500.0,0.00013698,2]
[422610808,1779151839000,-500.0,0.00013698,2]
[422610809,1779151839000,-500.0,0.00013698,2]
[422610821,1779151839000,-9999.99,0.00013699,2]
[422610815,1779151839000,-1196.09,0.00013699,2]
[422610814,1779151839000,-500.0,0.00013698,2]
[422610834,1779151839000,-250.0,0.00014023,2]
[422610816,1779151839000,-3872.24,0.00013699,2]
[422610817,1779151839000,-7645.37,0.00013699,2]
[422610813,1779151839000,-500.0,0.00013698,2]
[422610819,1779151839000,-353.05,0.00013699,2]
[422610818,1779151839000,-190734.85,0.00013699,2]
[422610820,1779151839000,-2130.55,0.00013699,2]
[422610822,1779151839000,-1578.74,0.00013699,2]
[422610826,1779151839000,-166.66,0.00013699,2]
[422610831,1779151839000,-166.66,0.00013973,2]
[422610835,1779151839000,-166.66,0.0001411,2]
[422610824,1779151839000,-314.44,0.00013699,2]
[422610830,1779151839000,-166.66,0.00013836,2]
[422610833,1779151839000,-2943.01,0.00014016,2]
[422610832,1779151839000,-250.0,0.00014,2]
[422610823,1779151839000,-24999.99,0.00013699,2]
[422610865,1779151839000,-349.53370553,0.0001459,2]
[422610828,1779151839000,-215.11887611,0.00013738,2]
[422610866,1779151839000,-500.0,0.0001459,2]
[422610901,1779151839000,-500.0,0.0001459,2]
[422610928,1779151839000,-172.86314933,0.000149,2]
[422610899,1779151839000,-500.0,0.0001459,2]
[422610902,1779151839000,-500.0,0.0001459,2]
[422610904,1779151839000,-500.0,0.0001459,2]
[422610905,1779151839000,-516.88243336,0.0001459,2]
[422610906,1779151839000,-500.0,0.0001459,2]
[422610907,1779151839000,-500.0,0.0001459,2]
[422610903,1779151839000,-500.0,0.0001459,2]
[422610908,1779151839000,-500.0,0.0001459,2]
[422610912,1779151839000,-500.0,0.0001459,2]
[422610914,1779151839000,-500.0,0.0001459,2]
[422610911,1779151839000,-553.1,0.0001459,2]
[422610900,1779151839000,-500.0,0.0001459,2]
[422610910,1779151839000,-500.0,0.0001459,2]
[422610915,1779151839000,-500.0,0.0001459,2]
[422610917,1779151839000,-370.03132959,0.0001459,2]
[422610916,1779151839000,-500.0,0.0001459,2]
[422610920,1779151839000,-500.0,0.00014649,2]
[422610927,1779151839000,-172.86314934,0.000149,2]
[422610925,1779151839000,-374.56,0.00014649,2]
[422610918,1779151839000,-374.2529762,0.00014649,2]
[422610926,1779151839000,-2351.0,0.00014849,2]
[422610923,1779151839000,-500.0,0.00014649,2]
[422610919,1779151839000,-500.0,0.00014649,2]
[422610922,1779151839000,-500.0,0.00014649,2]
[422610921,1779151839000,-500.0,0.00014649,2]
[422610864,1779151839000,-500.0,0.0001459,2]
[422610913,1779151839000,-500.0,0.0001459,2]
[422610893,1779151839000,-500.0,0.0001459,2]
[422610924,1779151839000,-500.0,0.00014649,2]
[422610898,1779151839000,-500.0,0.0001459,2]
[422610867,1779151839000,-500.0,0.0001459,2]
[422610868,1779151839000,-500.0,0.0001459,2]
[422610870,1779151839000,-500.0,0.0001459,2]
[422610869,1779151839000,-500.0,0.0001459,2]
[422610871,1779151839000,-500.0,0.0001459,2]
[422610872,1779151839000,-500.0,0.0001459,2]
[422610873,1779151839000,-500.0,0.0001459,2]
[422610874,1779151839000,-504.19636444,0.0001459,2]
[422610892,1779151839000,-500.0,0.0001459,2]
[422610884,1779151839000,-500.0,0.0001459,2]
[422610876,1779151839000,-500.0,0.0001459,2]
[422610880,1779151839000,-500.0,0.0001459,2]
[422610878,1779151839000,-500.0,0.0001459,2]
[422610877,1779151839000,-500.0,0.0001459,2]
[422610875,1779151839000,-500.0,0.0001459,2]
[422610886,1779151839000,-500.0,0.0001459,2]
[422610891,1779151839000,-500.0,0.0001459,2]
[422610887,1779151839000,-500.0,0.0001459,2]
[422610897,1779151839000,-500.0,0.0001459,2]
[422610895,1779151839000,-500.0,0.0001459,2]
[422610889,1779151839000,-500.0,0.0001459,2]
[422610894,1779151839000,-500.0,0.0001459,2]
[422610890,1779151839000,-500.0,0.0001459,2]
[422610888,1779151839000,-500.0,0.0001459,2]
[422610883,1779151839000,-500.0,0.0001459,2]
[422610882,1779151839000,-500.0,0.0001459,2]
[422610879,1779151839000,-500.0,0.0001459,2]
[422610881,1779151839000,-500.0,0.0001459,2]
[422610885,1779151839000,-500.0,0.0001459,2]
[422610896,1779151839000,-500.0,0.0001459,2]
[422610968,1779151840000,-151.0,0.00017505,2]
[422610969,1779151840000,-151.0,0.00017505,2]
[422610970,1779151840000,-151.0,0.00017505,2]
[422610979,1779151840000,-500.0,0.00017808,2]
[422610978,1779151840000,-500.0,0.00017808,2]
[422610955,1779151840000,-151.0,0.00017505,2]
[422610962,1779151840000,-151.0,0.00017505,2]
[422610963,1779151840000,-151.0,0.00017505,2]
[422610961,1779151840000,-151.0,0.00017505,2]
[422610959,1779151840000,-151.0,0.00017505,2]
[422610965,1779151840000,-151.0,0.00017505,2]
[422610967,1779151840000,-151.0,0.00017505,2]
[422610971,1779151840000,-151.0,0.00017505,2]
[422610985,1779151840000,-500.0,0.00017808,2]
[422610977,1779151840000,-500.0,0.00017808,2]
[422610974,1779151840000,-638.74,0.00017563,2]
[422610973,1779151840000,-151.0,0.00017505,2]
[422610975,1779151840000,-242.46497116,0.00017664,2]
[422610976,1779151840000,-429.66775388,0.00017788,2]
[422610981,1779151840000,-500.0,0.00017808,2]
[422610991,1779151840000,-500.0,0.00017808,2]
[422610982,1779151840000,-500.0,0.00017808,2]
[422610980,1779151840000,-500.0,0.00017808,2]
[422610983,1779151840000,-500.0,0.00017808,2]
[422610984,1779151840000,-500.0,0.00017808,2]
[422610992,1779151840000,-500.0,0.00017808,2]
[422610964,1779151840000,-151.0,0.00017505,2]
[422610972,1779151840000,-151.0,0.00017505,2]
[422610956,1779151840000,-151.0,0.00017505,2]
[422610941,1779151840000,-480.6,0.0001633,2]
[422610960,1779151840000,-151.0,0.00017505,2]
[422610987,1779151840000,-500.0,0.00017808,2]
[422610930,1779151840000,-7816.32136593,0.00015085,2]
[422610932,1779151840000,-670.76733201,0.00015206,2]
[422610931,1779151840000,-195.42,0.00015111,2]
[422610933,1779151840000,-163.23,0.00015391,2]
[422610934,1779151840000,-433.0,0.00015693,2]
[422610938,1779151840000,-19999.99,0.00016116,2]
[422610937,1779151840000,-1014.57559973,0.00016016,2]
[422610929,1779151840000,-166.66,0.00014985,2]
[422610936,1779151840000,-316.09634869,0.00016,2]
[422610935,1779151840000,-300.0,0.00016,2]
[422610939,1779151840000,-500.0,0.00016214,2]
[422610940,1779151840000,-842.37,0.00016214,2]
[422610966,1779151840000,-151.0,0.00017505,2]
[422610942,1779151840000,-3292.0,0.00016333,2]
[422610953,1779151840000,-420.54,0.00017426,2]
[422610945,1779151840000,-156.85,0.00016712,2]
[422610947,1779151840000,-195.42,0.0001679,2]
[422610944,1779151840000,-480.6,0.00016604,2]
[422610943,1779151840000,-562.6,0.00016438,2]
[422610946,1779151840000,-7816.32136593,0.00016768,2]
[422610949,1779151840000,-736.0,0.0001699,2]
[422610951,1779151840000,-7994.86625844,0.00017055,2]
[422610950,1779151840000,-670.76733201,0.0001701,2]
[422610948,1779151840000,-480.6,0.00016878,2]
[422610958,1779151840000,-151.0,0.00017505,2]
[422610957,1779151840000,-151.0,0.00017505,2]
[422610954,1779151840000,-151.0,0.00017505,2]
[422610952,1779151840000,-480.6,0.00017152,2]
[422610988,1779151840000,-500.0,0.00017808,2]
[422610989,1779151840000,-500.0,0.00017808,2]
[422611037,1779151840000,-329.0,0.0002,2]
[422611024,1779151840000,-1770.65065623,0.00019,2]
[422611028,1779151840000,-470.17833181,0.00019711,2]
[422611025,1779151840000,-12954.09,0.00019178,2]
[422611027,1779151840000,-150.0,0.000192,2]
[422611026,1779151840000,-150.0,0.000192,2]
[422611042,1779151840000,-1268.52,0.0002,2]
[422611032,1779151840000,-161.0,0.0002,2]
[422611033,1779151840000,-312.0,0.0002,2]
[422611031,1779151840000,-984.0,0.00019933,2]
[422611034,1779151840000,-450.0,0.0002,2]
[422611036,1779151840000,-170.02119813,0.0002,2]
[422611035,1779151840000,-157.0,0.0002,2]
[422611038,1779151840000,-155.0,0.0002,2]
[422611022,1779151840000,-407.625644,0.00018795,2]
[422611040,1779151840000,-496.0,0.0002,2]
[422611039,1779151840000,-159.0,0.0002,2]
[422611044,1779151840000,-7816.32136593,0.00020133,2]
[422611043,1779151840000,-2694.0,0.0002,2]
[422611047,1779151840000,-4065.48350973,0.0002017,2]
[422611050,1779151840000,-562.6,0.00020381,2]
[422611046,1779151840000,-2251.6526331,0.0002017,2]
[422611049,1779151840000,-508.6161554,0.0002035,2]
[422611053,1779151840000,-670.76733201,0.00020617,2]
[422611045,1779151840000,-195.42,0.00020148,2]
[422611052,1779151840000,-150.76109754,0.0002058,2]
[422611051,1779151840000,-428.44,0.00020509,2]
[422610990,1779151840000,-500.0,0.00017808,2]
[422611048,1779151840000,-263.50783151,0.0002017,2]
[422611041,1779151840000,-400.0,0.0002,2]
[422611030,1779151840000,-6453.0,0.00019763,2]